Workbook

Sheet 1
A1: Школа | B1: МБОУ "Базарно-Матакская СОШ" | E1: Отд./корп | I1: День | J1: 2023-11-11
A3: Прием пищи | B3: Раздел | C3: № рец. | D3: Блюдо | E3: Выход, г | F3: Цена | G3: Калорийность | H3: Белки | I3: Жиры | J3: Углеводы
A4: Завтрак | B4: закуска | C4: 45 | D4: Салат из белокочанной капусты | E4: 60 | G4: 14.5 | H4: 0.8 | I4: 0.1 | J4: 2.6
B5: гарнир | C5: 312 | D5: Картофельное пюре | E5: 150 | G5: 212.9 | H5: 3.8 | I5: 6.5 | J5: 34.8
B6: гор.блюдо | C6: 294 | D6: Котлета из птицы с соусом | E6: 80/20 | G6: 177.71 | H6: 10.6 | I6: 12.11 | J6: 6.58
B7: Хлеб | D7: Хлеб пшеничный | E7: 30 | G7: 71 | H7: 2.28 | I7: 0.24 | J7: 14.76
B8: Хлеб | D8: Хлеб ржан-пшеничный | E8: 20 | G8: 44 | H8: 1 | I8: 0.61 | J8: 9
B9: гор.напиток | C9: 685/2004 | D9: Чай с сахаром и яблоками | E9: 180/10/10 | G9: 60 | H9: 0.021 | I9: 0.005 | J9: 14.975
D10: Цена завтрака / Итого за завтрак | F10: 64.19 | G10: =SUM(G4:G9) -> 580.11 | H10: =SUM(H4:H9) -> 18.501 | I10: =SUM(I4:I9) -> 19.565 | J10: =SUM(J4:J9) -> 82.715
A11: Завтрак | B11: закуска | C11: 45 | D11: Салат из белокочанной капусты | E11: 50 | G11: 13.8 | H11: 0.77 | I11: 0.08 | J11: 2.5
A12: 5-11 кл | B12: гарнир | C12: 312 | D12: Картофельное пюре | E12: 180 | G12: 310.6 | H12: 4.8 | I12: 8.52 | J12: 48.67
B13: гор.блюдо | C13: 294 | D13: Котлета из птицы с соусом | E13: 90/20 | G13: 216.26 | H13: 11.9 | I13: 12.7 | J13: 14.8
B14: Хлеб | D14: Хлеб пшеничный/ ржан-пшеничный | E14: 60 | G14: 142 | H14: 4.56 | I14: 0.48 | J14: 29.52
B15: гор.напиток | C15: 685/2004 | D15: Чай с сахаром и яблоками | E15: 180/10/10 | G15: 65.3 | H15: 0.021 | I15: 0.005 | J15: 14.975
F16: 60.60 | G16: =SUM(G11:G15) -> 747.96 | H16: =SUM(H11:H15) -> 22.051 | I16: =SUM(I11:I15) -> 21.785 | J16: =SUM(J11:J15) -> 110.465
D17: Родительская плата (за минусом субсидии 8,80 рублей) | F17: 51.80
A18: обед 1-4 кл | B18: закуска | C18: 67 | D18: Салат из свеклы с зеленым горошком | E18: 60 | G18: 54 | H18: 0.93 | I18: 3.05 | J18: 5.645
B19: 1 блюдо | C19: 96 | D19: Рассольник Ленинградский на мкб со сметаной | E19: 225/15/10 | G19: 191.3 | H19: 7.02 | I19: 8.2 | J19: 18.95
B20: 2 блюдо | C20: 259 | D20: Жаркое по домашнему (из говядины) | E20: 200 | G20: 357.32 | H20: 13.18 | I20: 13 | J20: 46.9
B21: Хлеб | D21: Хлеб пшеничный | E21: 20 | G21: 47.33 | H21: 1.52 | I21: 0.16 | J21: 9.84
B22: Хлеб | D22: Хлеб ржано-пшеничный | E22: 20 | G22: 44 | H22: 1 | I22: 0.2 | J22: 9
B23: напиток | C23: 49 | D23: Компот из изюма | E23: 200 | G23: 145 | H23: 3.97 | I23: 2.1 | J23: 25.168
G24: =SUM(G18:G23) -> 838.95 | H24: =H18+H19+H20+H21+H22+H23 -> 27.62 | I24: =I18+I19+I20+I21+I22+I23 -> 26.71 | J24: =SUM(J18:J23) -> 115.503
D25: Цена обеда/ Итого за обед | F25: 80.80
A26: обед 5-11 кл | B26: закуска | C26: 67 | D26: Салат из свеклы с зеленым горошком | E26: 50 | G26: 43.76 | H26: 0.37 | I26: 4 | J26: 1.57
B27: 1 блюдо | C27: 96 | D27: Рассольник Ленинградский на мкб со сметаной | E27: 225/15/10 | G27: 191.3 | H27: 7.02 | I27: 8.2 | J27: 18.95
B28: 2 блюдо | C28: 259 | D28: Жаркое по домашнему (из говядины) | E28: 220 | G28: 434.8 | H28: 14.62 | I28: 15.98 | J28: 53.1
B29: Хлеб | D29: Хлеб пшеничный /ржано-пшеничный | E29: 60 | G29: 172 | H29: 4.56 | I29: 0.48 | J29: 29.52
B30: напиток | C30: 49 | D30: Компот из изюма | E30: 200 | G30: 145 | H30: 3.97 | I30: 2.1 | J30: 25.168
D31: Цена обеда/ Итого за обед | F31: 86.86 | G31: =G26+G27+G28+G29+G30 -> 986.86 | H31: =H26+H27+H28+H29+H30 -> 30.54 | I31: =I26+I27+I28+I29+I30 -> 30.76 | J31: =J26+J27+J28+J29+J30 -> 128.308
D32: Родительская плата (за минусом субсидии 8,80 рублей) | F32: 78.06
B33: 1 блюдо | C33: 96 | D33: Рассольник Ленинградский на мкб со сметаной | E33: 225/15/10 | G33: 191.3 | H33: 7.02 | I33: 8.2 | J33: 18.95
A34: Меню св в | B34: хлеб | D34: Хлеб пшеничный /ржано-пшеничный | E34: 30 | G34: 71 | H34: 2.28 | I34: 0.24 | J34: 14.76
B35: напиток | C35: 49 | D35: Компот из изюма | E35: 200 | G35: 145 | H35: 3.97 | I35: 2.1 | J35: 25.168
D36: Цена: 35,35 | G36: =SUM(G33:G35) -> 407.3 | H36: =SUM(H33:H35) -> 13.27 | I36: =SUM(I33:I35) -> 10.54 | J36: =SUM(J33:J35) -> 58.878
A37: Меню за счетбюджетных средств- 8.30 | D37: Кондитерское изделие | E37: 50 | G37: 138.6 | H37: 1.28 | I37: 1.12 | J37: 26.4
C38: 376 | D38: Чай с сахаром | E38: 190/10 | G38: 60 | H38: 0.021 | I38: 0.005 | J38: 14.975
